bitfinex-derivatives/quotes_BTCF0:USTF0_20240825
["timestamp","ask_amount","ask_price","bid_price","bid_amount"]
[1724627255336,0.902497,64653.0,64652.0,0.00323199]
[1724627255536,0.96426779,64653.0,64652.0,0.00323199]
[1724627255732,0.96426779,64653.0,64646.0,0.06145752]
[1724627255733,0.077303,64648.0,64647.0,0.04600466]
[1724627255925,0.077305,64647.0,64646.0,0.04600466]
[1724627256128,0.077306,64646.0,64645.0,0.04600466]
[1724627256329,0.077307,64645.0,64644.0,0.04616825]
[1724627256531,0.12363571,64645.0,64643.0,0.04616825]
[1724627256726,0.12363571,64645.0,64643.0,0.12347725]
[1724627257033,0.12363571,64645.0,64644.0,0.04616825]
[1724627257431,0.12363571,64645.0,64644.0,0.12347625]
[1724627257839,0.04732871,64645.0,64644.0,0.12347625]
[1724627258333,0.001,64645.0,64644.0,0.083308]
[1724627258539,0.002,64645.0,64644.0,0.088308]
[1724627259733,0.0492,64645.0,64644.0,0.088308]
[1724627260839,0.0492,64645.0,64640.0,0.12348025]
[1724627260840,0.077309,64644.0,64640.0,0.12348025]
[1724627261035,0.78505223,64645.0,64640.0,0.12348025]
[1724627261036,0.40710731,64641.0,64640.0,0.12348025]
[1724627261334,0.3608,64641.0,64640.0,0.077312]
[1724627261534,1.22492,64641.0,64640.0,0.077312]
[1724627261834,0.82532,64641.0,64640.0,0.077312]
[1724627262024,0.82532,64641.0,64640.0,0.085312]
[1724627262231,0.87160543,64641.0,64640.0,0.085312]
[1724627263030,0.36131543,64641.0,64637.0,0.04616825]
[1724627263335,0.36131543,64641.0,64634.0,0.12348825]
[1724627263336,0.3608,64639.0,64634.0,0.12348825]
[1724627263536,0.077318,64636.0,64634.0,0.07732]
[1724627264042,0.04667623,64635.0,64629.0,0.04640024]
[1724627264332,0.04667623,64635.0,64629.0,0.00023199]
[1724627264333,0.438125,64631.0,64629.0,0.00023199]
[1724627264536,0.07745647,64630.0,64629.0,0.00023199]
[1724627264736,0.58965647,64630.0,64629.0,0.00023199]
[1724627264936,1.03915647,64630.0,64629.0,0.00023199]
[1724627265442,0.077329,64627.0,64622.0,0.077334]
[1724627265636,0.3608,64623.0,64622.0,0.077334]
[1724627265826,0.3608,64623.0,64617.0,0.14411829]
[1724627265827,0.077335,64622.0,64617.0,0.14411829]
[1724627266032,0.07747636,64621.0,64617.0,0.09795004]
[1724627266428,0.54171636,64621.0,64617.0,0.09795004]
[1724627266629,0.077338,64619.0,64617.0,0.00013328]
[1724627266830,0.541618,64619.0,64617.0,0.00013328]
[1724627267034,0.0004,64618.0,64617.0,0.00013328]
[1724627268542,0.0014,64618.0,64617.0,0.00013328]
[1724627268738,0.0024,64618.0,64617.0,0.00013328]
[1724627268944,0.46668,64618.0,64617.0,0.00013328]
[1724627269535,0.67668,64618.0,64617.0,0.00013328]
[1724627269847,1.154019,64618.0,64617.0,0.00013328]
[1724627273340,1.154019,64618.0,64613.0,0.00015641]
[1724627273341,0.077344,64614.0,64613.0,0.00015641]
[1724627273546,0.438144,64614.0,64613.0,0.00015641]
[1724627274046,0.438544,64614.0,64613.0,0.00015641]
[1724627274350,0.43869078,64614.0,64613.0,0.00015641]
[1724627274640,1.30397078,64614.0,64613.0,0.00015641]
[1724627274839,1.30497078,64614.0,64613.0,0.00015641]
[1724627275149,0.44069078,64614.0,64613.0,0.00015641]
[1724627275347,0.43969078,64614.0,64613.0,0.00015641]
[1724627275640,0.36234678,64614.0,64613.0,0.00015641]
[1724627276548,0.36134678,64614.0,64613.0,0.00015641]
[1724627276943,0.43869078,64614.0,64613.0,0.00015641]
[1724627281746,0.43869078,64614.0,64613.0,0.01015641]
[1724627281943,0.43869078,64614.0,64613.0,0.08750141]
[1724627281944,0.00054678,64614.0,64613.0,0.08750141]
[1724627282444,0.00054678,64614.0,64613.0,0.07750141]
[1724627283634,0.07789078,64614.0,64613.0,0.00015641]
[1724627285449,0.07789078,64614.0,64613.0,0.0207858]
[1724627285643,0.07789078,64614.0,64613.0,0.00015641]
[1724627286151,0.43869078,64614.0,64613.0,0.00015641]
[1724627288548,1.38031478,64614.0,64613.0,0.00015641]
[1724627288835,0.077358,64603.0,64600.0,0.17276]
[1724627289039,0.21,64605.0,64592.0,0.04616825]
[1724627289040,0.00012227,64602.0,64592.0,0.04616825]
[1724627289240,0.077369,64594.0,64592.0,0.11092601]
[1724627289447,0.3608,64596.0,64592.0,0.02092601]
[1724627289448,0.077369,64593.0,64592.0,0.02092601]
[1724627289640,0.077373,64590.0,64589.0,0.0473]
[1724627289840,0.077376,64588.0,64583.0,0.077381]
[1724627290045,0.077376,64588.0,64584.0,0.07738]
[1724627290240,0.077376,64588.0,64584.0,0.10738]
[1724627291343,0.001,64588.0,64584.0,0.03]
[1724627291649,0.079375,64588.0,64584.0,0.03]
[1724627292052,0.079375,64588.0,64583.0,0.06738111]
[1724627292053,0.002,64588.0,64583.0,0.02121286]
[1724627292247,0.002,64588.0,64582.0,0.3608]
[1724627293049,0.0004,64583.0,64581.0,0.0473]
[1724627293256,0.0004,64583.0,64581.0,0.1573]
[1724627293456,0.0004,64583.0,64581.0,0.17830195]
[1724627293751,0.0004,64582.0,64581.0,0.17830195]
[1724627294149,0.00058503,64582.0,64581.0,0.17830195]
[1724627295257,0.00058503,64582.0,64581.0,0.53910195]
[1724627295657,0.00058503,64582.0,64581.0,0.61648595]
[1724627296345,0.00058503,64582.0,64581.0,0.6626542]
[1724627296346,0.00158503,64582.0,64581.0,0.6626542]
[1724627296545,0.00258503,64582.0,64581.0,0.61648595]
[1724627297255,0.00258503,64582.0,64581.0,1.08100595]
[1724627298350,0.00258503,64582.0,64581.0,0.61648595]
[1724627300852,0.00258503,64582.0,64581.0,0.67788578]
[1724627302450,0.00258503,64582.0,64581.0,0.61648595]
[1724627303255,0.00258503,64582.0,64581.0,0.6778893]
[1724627304858,0.02116297,64596.0,64581.0,1.40362195]
[1724627305049,0.00023217,64599.0,64598.0,0.077363]
[1724627305253,0.00023217,64599.0,64598.0,0.117363]
[1724627305448,0.00023217,64599.0,64598.0,0.077363]
[1724627305854,0.00035217,64599.0,64598.0,0.077763]
[1724627306753,0.00435217,64599.0,64598.0,0.077763]
[1724627307655,0.00435217,64599.0,64598.0,0.087763]
[1724627308957,0.00335217,64599.0,64598.0,0.087763]
[1724627309161,0.00235217,64599.0,64598.0,0.087763]
[1724627309665,0.00035217,64599.0,64598.0,0.087763]
[1724627313365,0.07771417,64599.0,64598.0,0.0004]
[1724627313564,0.07771417,64599.0,64598.0,0.02069969]
[1724627313565,0.43851417,64599.0,64598.0,0.02069969]
[1724627315661,0.07771417,64599.0,64598.0,0.02069969]
[1724627315865,0.43851417,64599.0,64598.0,0.02069969]
[1724627319759,0.07771417,64599.0,64598.0,0.02069969]
[1724627322363,0.07771417,64599.0,64598.0,0.09806269]
[1724627323166,0.00035217,64599.0,64598.0,0.09806269]
[1724627324070,0.00035217,64599.0,64598.0,0.10806269]
[1724627324270,0.00035217,64599.0,64598.0,0.16945858]
[1724627324458,0.04669101,64599.0,64598.0,0.16945858]
[1724627324658,0.04669101,64599.0,64598.0,0.10806269]
[1724627324659,0.00035217,64599.0,64598.0,0.10806269]
[1724627324869,0.04669101,64599.0,64598.0,0.16958686]
[1724627325474,0.04669101,64599.0,64598.0,0.10806269]
[1724627325864,0.00035217,64599.0,64598.0,0.10806269]
[1724627326569,0.04669101,64599.0,64598.0,0.10806269]
[1724627329968,0.00035217,64599.0,64598.0,0.10806269]
[1724627330374,0.02543363,64599.0,64598.0,0.10806269]
[1724627331374,0.02543402,64599.0,64598.0,0.10806269]
[1724627335374,0.10279602,64599.0,64598.0,0.02069969]
[1724627335570,0.10279602,64599.0,64598.0,0.03069969]
[1724627337379,0.07771417,64599.0,64598.0,0.03069969]
[1724627338078,0.1395827,64599.0,64598.0,0.03069969]
[1724627338273,0.1395827,64599.0,64598.0,0.09226568]
[1724627338481,0.0463991,64601.0,64600.0,0.077361]
[1724627338678,0.0471991,64603.0,64602.0,0.167358]
[1724627338875,0.1237561,64604.0,64602.0,0.19]
[1724627339071,0.077357,64604.0,64602.0,0.25160231]
[1724627339375,0.13922488,64604.0,64602.0,0.25160231]
[1724627339683,0.077357,64604.0,64603.0,0.0004]
[1724627339880,0.077357,64604.0,64603.0,0.0804]
[1724627340373,0.001,64604.0,64603.0,0.0804]
[1724627340579,0.001,64604.0,64603.0,0.21935931]
[1724627341578,0.003,64604.0,64603.0,0.21935931]
[1724627341971,0.003,64604.0,64603.0,0.247757]
[1724627342178,0.004,64604.0,64603.0,0.247757]
[1724627349274,0.004,64604.0,64603.0,0.157757]
[1724627350089,0.004,64604.0,64603.0,0.247757]
[1724627351283,0.004,64604.0,64603.0,0.26710516]
[1724627351993,0.004,64604.0,64603.0,1.112117]
[1724627352287,0.04634937,64620.0,64610.0,0.077349]
[1724627352477,0.0957,64631.0,64610.0,0.077349]
[1724627352478,0.04634937,64632.0,64619.0,0.7216]
[1724627352685,0.04634937,64636.0,64631.0,0.09]
[1724627352876,0.06181766,64640.0,64635.0,0.3608]
[1724627352877,0.04634937,64640.0,64635.0,0.3608]
[1724627353077,0.04658154,64644.0,64642.0,0.07731]
[1724627353282,0.00023217,64644.0,64643.0,0.04597725]
[1724627353584,0.00023217,64644.0,64643.0,0.11]
[1724627353780,0.00023217,64644.0,64643.0,0.1104]
[1724627354386,0.00123217,64644.0,64643.0,0.1104]
[1724627355284,0.00223217,64644.0,64643.0,0.97448]
[1724627355990,0.00223217,64644.0,64643.0,0.97548]
[1724627356783,0.00223217,64644.0,64643.0,1.10104]
[1724627357584,0.002,64644.0,64643.0,1.10004]
[1724627357888,0.3608,64658.0,64643.0,1.10004]
[1724627358083,0.3608,64658.0,64652.0,0.648098]
[1724627358297,0.0452,64665.0,64652.0,0.758098]
[1724627358491,0.0452,64665.0,64658.0,0.3608]
[1724627358692,0.00023199,64665.0,64658.0,0.5708]
[1724627358994,0.00023199,64665.0,64664.0,0.0004]
[1724627359489,0.00023199,64665.0,64664.0,0.3612]
[1724627360093,0.00023199,64665.0,64664.0,0.3824657]
[1724627360684,0.01323199,64665.0,64664.0,0.3824657]
[1724627361390,0.02723199,64665.0,64664.0,0.3824657]
[1724627361981,0.02723199,64665.0,64664.0,0.4224657]
[1724627370292,0.02723199,64665.0,64664.0,0.4997497]
[1724627370495,0.02723199,64665.0,64664.0,0.7097497]
[1724627372189,0.02723199,64665.0,64664.0,0.4997497]
[1724627377797,0.02723199,64665.0,64664.0,0.7097497]
[1724627379305,0.02623199,64665.0,64664.0,0.7097497]
[1724627380200,0.02523199,64665.0,64664.0,0.7097497]
[1724627382401,0.02523199,64665.0,64664.0,0.4997497]
[1724627382612,0.02523199,64665.0,64664.0,0.54563258]
[1724627383612,0.02523199,64665.0,64664.0,0.4997497]
[1724627385720,0.02523199,64665.0,64664.0,0.0616657]
[1724627386218,0.08704965,64665.0,64664.0,0.0616657]
[1724627386619,0.08695625,64665.0,64664.0,0.0616657]
[1724627386824,0.16423971,64665.0,64664.0,0.0616657]
[1724627387220,0.15101499,64665.0,64664.0,0.0616657]
[1724627387619,0.15101499,64665.0,64664.0,0.46843546]
[1724627387921,0.21273971,64665.0,64664.0,0.46843546]
[1724627388626,0.15101499,64665.0,64664.0,0.46843546]
[1724627388819,0.15101499,64665.0,64664.0,0.4224657]
[1724627389025,0.15101499,64665.0,64664.0,0.08636976]
[1724627389228,0.61493499,64665.0,64664.0,0.0004]
[1724627389523,0.69227165,64665.0,64664.0,0.0004]
[1724627390025,0.61493499,64665.0,64664.0,0.0004]
[1724627390228,0.69214349,64665.0,64664.0,0.0004]
[1724627390720,1.01493499,64665.0,64664.0,0.0004]
[1724627391918,1.01493499,64665.0,64643.0,0.10814464]
[1724627391919,1.01493499,64665.0,64660.0,0.04596976]
[1724627392112,0.407117,64661.0,64660.0,0.04596976]
[1724627392313,0.407117,64661.0,64654.0,0.077296]
[1724627392314,0.077289,64660.0,64659.0,0.0460498]
[1724627392519,0.077289,64660.0,64654.0,0.077296]
[1724627392520,0.0494,64660.0,64658.0,0.0460498]
[1724627392823,0.077291,64658.0,64657.0,0.0460498]
[1724627393030,0.123598,64658.0,64657.0,0.0460498]
[1724627393328,0.541291,64658.0,64657.0,0.0460498]
[1724627393626,0.541291,64658.0,64654.0,0.0460498]
[1724627393627,0.8644,64658.0,64654.0,0.0460498]
[1724627393829,0.077296,64654.0,64653.0,0.0460498]
[1724627394430,0.077297,64653.0,64652.0,0.00023199]
[1724627395027,0.12356783,64653.0,64652.0,0.00023199]
[1724627395221,0.12396783,64653.0,64652.0,0.00023199]
[1724627395426,0.0004,64653.0,64652.0,0.12458079]
[1724627395624,0.0004,64653.0,64652.0,0.17853099]
[1724627396219,0.077697,64653.0,64652.0,0.00123199]
[1724627396419,0.0004,64653.0,64652.0,0.00123199]
[1724627396627,0.0004,64653.0,64652.0,0.07853099]
[1724627396826,0.0004,64653.0,64652.0,0.12853099]
[1724627397028,0.0004,64653.0,64652.0,0.12953099]
[1724627397826,0.0004,64653.0,64652.0,0.05223199]
[1724627398128,0.0004,64653.0,64652.0,0.00223199]
[1724627398316,0.077697,64653.0,64652.0,0.00223199]
[1724627400421,1.302497,64653.0,64652.0,0.00223199]
[1724627400625,0.0004,64653.0,64652.0,0.12550401]
[1724627401018,0.0004,64653.0,64652.0,0.13953099]
[1724627401426,0.0004,64653.0,64652.0,0.18547245]
[1724627401628,0.0004,64653.0,64652.0,0.13953099]
[1724627401927,0.0004,64653.0,64652.0,0.06223199]
[1724627401928,0.077697,64653.0,64652.0,0.06223199]
[1724627415435,0.077697,64653.0,64652.0,0.00223199]
[1724627415737,0.12396783,64653.0,64652.0,0.00223199]
[1724627416633,0.077697,64653.0,64652.0,0.00223199]
[1724627416835,0.077697,64653.0,64650.0,0.00144]
[1724627416836,0.0773,64651.0,64650.0,0.00144]
[1724627417031,0.077308,64644.0,64643.0,0.04602705]
[1724627417231,0.077309,64643.0,64642.0,0.40682705]
[1724627417937,0.07731,64642.0,64641.0,0.04602705]
[1724627418139,0.077313,64640.0,64639.0,0.04602705]
[1724627418435,0.077314,64639.0,64638.0,0.02114525]
[1724627418641,0.124214,64639.0,64636.0,0.04625904]
[1724627419436,0.0004,64637.0,64636.0,0.04625904]
[1724627419843,0.0004,64637.0,64636.0,0.04725904]
[1724627420542,0.0004,64637.0,64636.0,0.00223199]
[1724627420730,0.077716,64637.0,64636.0,0.02280108]
[1724627421536,0.077716,64637.0,64636.0,0.03280108]
[1724627421537,0.0004,64637.0,64636.0,0.03280108]
[1724627421737,0.0004,64637.0,64636.0,0.10911908]
[1724627421933,0.0014,64637.0,64636.0,0.15614613]
[1724627422132,0.0014,64637.0,64636.0,0.15514613]
[1724627422330,0.0024,64637.0,64636.0,0.15614613]
[1724627423147,0.0024,64637.0,64636.0,0.11011908]
[1724627426736,0.0024,64637.0,64636.0,0.156075]
[1724627427341,0.0024,64637.0,64636.0,0.11011908]
[1724627429638,0.04653873,64649.0,64636.0,1.2373354]
[1724627429838,0.00023199,64649.0,64648.0,0.077303]
[1724627430038,0.00023199,64649.0,64648.0,0.177303]
[1724627430440,0.00023199,64649.0,64648.0,0.177703]
[1724627430847,0.00123199,64649.0,64648.0,0.177703]
[1724627431549,0.00123199,64649.0,64648.0,0.179703]
[1724627432050,0.00223199,64649.0,64648.0,0.179703]
[1724627432546,0.00223199,64649.0,64648.0,0.181703]
[1724627433641,0.00223199,64649.0,64648.0,0.24297331]
[1724627435352,0.00223199,64649.0,64648.0,0.20295718]
[1724627441152,0.04630674,64659.0,64656.0,0.077293]
[1724627441345,0.04630674,64659.0,64656.0,0.11]
[1724627441549,0.04630674,64660.0,64658.0,0.21]
[1724627441848,0.0453,64663.0,64661.0,0.077288]
[1724627442039,0.0453,64663.0,64662.0,0.3608]
[1724627442239,0.04630674,64665.0,64662.0,0.4508]
[1724627442441,0.04630674,64666.0,64662.0,0.4508]
[1724627442844,0.12358774,64667.0,64662.0,0.4508]
[1724627443651,0.12358774,64667.0,64666.0,0.0004]
[1724627443652,0.077281,64667.0,64666.0,0.0004]
[1724627443849,0.12358774,64667.0,64666.0,0.0004]
[1724627444449,0.077281,64667.0,64666.0,0.0004]
[1724627444856,0.105281,64667.0,64666.0,0.0004]
[1724627445559,0.15150316,64667.0,64666.0,0.0004]
[1724627445857,0.105281,64667.0,64666.0,0.0104]
[1724627446057,0.15150316,64667.0,64666.0,0.0104]
[1724627446254,0.15150316,64667.0,64666.0,0.0004]
[1724627446460,0.105281,64667.0,64666.0,0.0004]
[1724627448259,0.105281,64667.0,64666.0,0.0104]
[1724627450355,0.077287,64662.0,64661.0,0.0211873]
[1724627450657,0.105281,64667.0,64656.0,0.07752599]
[1724627450658,0.077288,64661.0,64656.0,0.07752599]
[1724627450864,0.077292,64658.0,64656.0,0.18752599]
[1724627451054,0.0457,64657.0,64656.0,0.18752599]
[1724627451450,0.0461,64657.0,64656.0,0.18752599]
[1724627451853,0.0461,64657.0,64656.0,0.2081237]
[1724627452461,0.123392,64657.0,64656.0,0.1308297]
[1724627452861,0.127392,64657.0,64656.0,0.1308297]
[1724627453263,0.131392,64657.0,64656.0,0.1308297]
[1724627453960,0.131392,64657.0,64656.0,0.11023199]
[1724627457568,0.17761416,64657.0,64656.0,0.11023199]
[1724627457963,0.131392,64657.0,64656.0,0.11023199]
[1724627461759,0.0084,64657.0,64656.0,0.47103199]
[1724627462272,0.0084,64657.0,64656.0,0.60958102]
[1724627462472,0.0084,64657.0,64656.0,0.54832599]
[1724627464879,0.04631712,64664.0,64657.0,0.077293]
[1724627465077,0.00023199,64669.0,64657.0,0.077293]
[1724627465078,0.04654911,64669.0,64668.0,0.077279]
[1724627465269,0.00023199,64669.0,64668.0,0.538079]
[1724627465572,0.00023199,64669.0,64668.0,0.59926755]
[1724627465774,0.04631712,64675.0,64668.0,1.32512]
[1724627465967,0.0032,64679.0,64674.0,0.42194807]
[1724627466167,0.0032,64679.0,64678.0,0.045861]
[1724627466362,0.0032,64679.0,64678.0,0.177267]
[1724627466580,0.0032,64679.0,64678.0,0.1]
[1724627466770,0.0032,64679.0,64678.0,0.0004]
[1724627467674,0.1137,64679.0,64678.0,0.0004]
[1724627468270,0.08,64679.0,64678.0,0.1014]
[1724627468671,0.0312,64679.0,64678.0,0.1014]
[1724627469779,0.0312,64679.0,64678.0,0.179667]
[1724627471674,0.0312,64679.0,64678.0,0.0024]
[1724627473782,0.108466,64679.0,64678.0,0.0024]
[1724627474587,0.469266,64679.0,64678.0,0.0024]
[1724627475582,0.48926889,64679.0,64678.0,0.0024]
[1724627476381,0.5508432,64679.0,64678.0,0.0024]
[1724627476581,0.48926889,64679.0,64678.0,0.0024]
[1724627478577,0.55084129,64679.0,64678.0,0.0024]
[1724627478986,0.48926889,64679.0,64678.0,0.0024]
[1724627479381,0.12846889,64679.0,64678.0,0.0024]
[1724627479889,0.19004362,64679.0,64678.0,0.0024]
[1724627480485,0.19004362,64679.0,64678.0,0.0124]
[1724627480687,0.108466,64679.0,64678.0,0.0124]
[1724627484292,0.0312,64679.0,64678.0,0.089667]
[1724627485091,0.0312,64679.0,64678.0,1.18271752]
[1724627485289,0.0312,64679.0,64678.0,1.22811752]
[1724627485689,0.0312,64679.0,64678.0,1.27388987]
[1724627485893,0.0312,64679.0,64678.0,1.27388979]
[1724627486397,0.0272,64679.0,64678.0,1.27388979]
[1724627486694,0.0272,64679.0,64678.0,0.87388979]
[1724627488093,0.0272,64679.0,64678.0,0.82811752]
[1724627488492,0.0272,64679.0,64678.0,0.87388979]
[1724627489191,0.00023199,64685.0,64684.0,0.07726]
[1724627489498,0.00023199,64685.0,64684.0,0.73806]
[1724627489890,0.00023199,64685.0,64684.0,0.7838502]
[1724627490488,0.01423199,64685.0,64684.0,0.7848502]
[1724627491091,0.01423199,64685.0,64684.0,1.60286]
[1724627491092,0.01296519,64685.0,64684.0,1.60286]
[1724627491799,0.02196519,64685.0,64684.0,1.60386]
[1724627492702,0.01296519,64685.0,64684.0,1.60386]
[1724627492896,0.00023199,64691.0,64690.0,0.077253]
[1724627493097,0.00023199,64691.0,64690.0,0.528053]
[1724627493399,0.00023199,64691.0,64690.0,0.57385273]
[1724627493594,0.00023199,64691.0,64690.0,0.528053]
[1724627494402,0.00823199,64691.0,64690.0,0.529053]
[1724627494699,0.00823199,64691.0,64690.0,1.49916107]
[1724627495092,0.01523199,64691.0,64690.0,1.50016107]
[1724627495405,0.00723199,64691.0,64690.0,1.438013]
[1724627495591,0.00823199,64691.0,64690.0,1.457903]
[1724627495787,0.00123199,64691.0,64690.0,1.456903]
[1724627495988,0.00023199,64691.0,64690.0,1.458903]
[1724627498698,0.00023199,64691.0,64690.0,1.013703]
[1724627499002,0.00023199,64691.0,64690.0,0.47269]
[1724627499003,0.12366056,64691.0,64690.0,0.47269]
[1724627499196,0.07748399,64691.0,64690.0,0.47269]
[1724627499504,0.00023199,64691.0,64690.0,0.47269]
[1724627500203,0.00023199,64691.0,64690.0,1.013703]
[1724627500403,0.00023199,64691.0,64690.0,1.110003]
[1724627503300,0.00023199,64691.0,64690.0,0.646243]
[1724627506697,0.00023199,64691.0,64690.0,0.69200739]
[1724627508112,0.00023199,64691.0,64690.0,0.59570739]
[1724627508707,0.00023199,64691.0,64690.0,0.550343]
[1724627509907,0.00023199,64691.0,64690.0,0.59613423]
[1724627510503,0.00023199,64691.0,64690.0,0.550343]
[1724627512406,0.06177899,64691.0,64690.0,0.550343]
[1724627513401,0.00023199,64691.0,64690.0,0.550343]
[1724627516505,0.00023199,64691.0,64690.0,0.627596]
[1724627517212,0.00023199,64691.0,64690.0,1.491356]
[1724627518415,0.00023199,64691.0,64690.0,1.59469488]
[1724627518614,0.00023199,64691.0,64690.0,1.95549488]
[1724627520217,0.00023199,64691.0,64690.0,1.47824188]
[1724627520818,0.00023199,64691.0,64690.0,1.87824188]
[1724627524030,0.00023199,64691.0,64690.0,1.95549488]
[1724627524816,0.00023199,64691.0,64690.0,1.95449488]
[1724627525010,0.00023199,64691.0,64690.0,1.95649488]
[1724627525415,0.00023199,64691.0,64690.0,1.853156]
[1724627525810,0.00023199,64691.0,64690.0,1.854156]
[1724627527122,0.00023199,64691.0,64690.0,1.87347394]
[1724627530321,0.00023199,64691.0,64690.0,1.87147394]
[1724627530516,0.00023199,64691.0,64690.0,1.47447394]
[1724627531126,0.00023199,64691.0,64690.0,0.9945794]
[1724627531427,0.00023199,64691.0,64690.0,0.95799235]
[1724627531623,0.00023199,64691.0,64690.0,0.96099235]
[1724627531833,0.00023199,64691.0,64690.0,0.915143]
[1724627532131,0.00123199,64691.0,64690.0,0.94546183]
[1724627532425,0.00123199,64691.0,64690.0,0.95646183]
[1724627532819,0.00023199,64691.0,64690.0,0.95646183]
[1724627533426,0.00023199,64691.0,64690.0,1.05968223]
[1724627534129,0.00023199,64691.0,64690.0,1.13568223]
[1724627534323,0.00023199,64691.0,64690.0,1.14968223]
[1724627534935,0.00023199,64691.0,64690.0,1.13568223]
[1724627535132,0.00023199,64691.0,64690.0,1.14968223]
[1724627535331,0.00023199,64691.0,64690.0,1.22609412]
[1724627535819,0.00023199,64691.0,64690.0,1.14968223]
[1724627536435,0.00023199,64691.0,64690.0,1.22608255]
[1724627537935,0.00023199,64691.0,64690.0,1.22603473]
[1724627538134,0.00023199,64691.0,64690.0,1.21203418]
[1724627538324,0.00023199,64691.0,64690.0,1.22603418]
[1724627540531,0.00023199,64691.0,64690.0,1.04646128]
[1724627541639,0.00023199,64691.0,64690.0,1.04646217]
[1724627543341,0.00023199,64691.0,64690.0,1.12286249]
[1724627544354,0.00023199,64691.0,64690.0,1.22661237]
[1724627545035,0.00023199,64691.0,64690.0,1.2072932]
[1724627545236,0.00023199,64691.0,64690.0,1.22661252]
[1724627545436,0.00023199,64691.0,64690.0,1.1502122]
[1724627545630,0.00023199,64691.0,64690.0,1.22665985]
[1724627546343,0.00023199,64691.0,64690.0,1.1502122]
[1724627546746,0.00023199,64691.0,64690.0,1.22665057]
[1724627546943,0.00023199,64691.0,64690.0,0.50505057]
[1724627547136,0.00023199,64691.0,64690.0,1.22665057]
[1724627547637,0.00023199,64691.0,64690.0,1.12290069]
[1724627547842,0.00023199,64691.0,64690.0,1.22665581]
[1724627548433,0.00023199,64691.0,64690.0,1.04646232]
[1724627548934,0.04803199,64691.0,64690.0,1.04646232]
[1724627549439,0.10973707,64691.0,64690.0,1.04646232]
[1724627549642,0.04803199,64691.0,64690.0,1.09233416]
[1724627549939,0.04803199,64691.0,64690.0,1.04646232]
[1724627550134,0.04803199,64691.0,64690.0,0.92508116]
[1724627550335,0.04803199,64691.0,64690.0,0.60840932]
[1724627550336,0.12496575,64691.0,64690.0,0.60840932]
[1724627550640,0.07307522,64691.0,64690.0,0.58909]
[1724627551146,0.07307522,64691.0,64690.0,0.22829]
[1724627551342,0.12523256,64691.0,64690.0,0.22829]
[1724627551547,0.58899256,64691.0,64690.0,0.22829]
[1724627553233,0.51179199,64691.0,64690.0,0.22829]
[1724627553641,0.58899256,64691.0,64690.0,0.22829]
[1724627554340,0.58899256,64691.0,64690.0,0.13829]
[1724627554647,0.6140872,64691.0,64690.0,0.13829]
[1724627555147,0.70640771,64691.0,64690.0,0.13829]
[1724627555335,0.6140872,64691.0,64690.0,0.13829]
[1724627555539,0.58904399,64691.0,64690.0,0.13829]
[1724627556139,0.58904399,64691.0,64690.0,0.21829]
[1724627556641,0.12528399,64691.0,64690.0,0.21829]
[1724627557344,0.04803199,64691.0,64690.0,0.21829]
[1724627557547,0.04803199,64691.0,64690.0,0.26416184]
[1724627557746,0.04803199,64691.0,64687.0,0.42194814]
[1724627557747,1.40886773,64691.0,64687.0,0.06114814]
[1724627558053,1.40886773,64691.0,64678.0,0.45232879]
[1724627558054,0.13896424,64688.0,64684.0,0.3608]
[1724627558243,0.0468,64687.0,64684.0,0.4608]
[1724627558641,0.0468,64687.0,64684.0,0.50663886]
[1724627558938,0.5106,64687.0,64684.0,0.50663886]
[1724627559141,0.0468,64687.0,64686.0,0.09]
[1724627559344,0.0468,64687.0,64686.0,0.18]
[1724627559548,0.49656,64687.0,64686.0,0.18]
[1724627560141,0.0228,64687.0,64686.0,0.18]
[1724627560841,0.0228,64687.0,64686.0,0.19]
[1724627560842,0.0238,64687.0,64686.0,0.19]
[1724627561649,0.0248,64687.0,64686.0,0.19]
[1724627563647,0.07104913,64687.0,64686.0,0.19]
[1724627564144,0.0248,64687.0,64686.0,0.19]
[1724627564347,0.0248,64687.0,64686.0,0.1]
[1724627564555,0.48856,64687.0,64686.0,0.1]
[1724627564744,0.48856,64687.0,64686.0,0.01]
[1724627564745,0.55026924,64687.0,64686.0,0.01]
[1724627565050,0.565817,64687.0,64686.0,0.01]
[1724627565247,0.565817,64687.0,64686.0,0.1]
[1724627566448,0.62746885,64687.0,64686.0,0.01]
[1724627566745,0.565817,64687.0,64686.0,0.01]
[1724627566951,0.655817,64687.0,64686.0,0.01]
[1724627567339,1.326617,64687.0,64686.0,0.01]
[1724627567742,1.326617,64687.0,64686.0,0.1]
[1724627567743,0.462857,64687.0,64686.0,0.1]
[1724627570148,0.079257,64687.0,64686.0,0.4108]
[1724627570351,0.14090266,64687.0,64686.0,0.5008]
[1724627570551,0.12549064,64687.0,64686.0,0.5008]
[1724627570856,0.12549102,64687.0,64686.0,0.5008]
[1724627571251,0.079257,64687.0,64686.0,0.5008]
[1724627571444,0.543017,64687.0,64686.0,0.5008]
[1724627571645,0.079257,64687.0,64686.0,0.5008]
[1724627573650,0.002,64687.0,64686.0,0.5008]
[1724627573850,0.002,64687.0,64686.0,0.578058]
[1724627574252,0.002,64687.0,64686.0,0.488058]
[1724627574648,0.002,64687.0,64686.0,0.4108]
[1724627577855,0.002,64687.0,64686.0,0.488058]
[1724627578852,0.06370672,64687.0,64686.0,0.488058]
[1724627579052,0.002,64687.0,64686.0,0.488058]
[1724627579262,0.002,64687.0,64686.0,0.533658]
[1724627579452,0.04692022,64691.0,64690.0,0.077253]
[1724627579759,0.00063199,64691.0,64690.0,0.548053]
[1724627580152,0.00063199,64691.0,64690.0,0.548453]
[1724627580566,0.00063199,64691.0,64690.0,0.62888811]
[1724627580749,0.00263199,64691.0,64690.0,0.62988811]
[1724627581155,0.00263199,64691.0,64690.0,0.56877137]
[1724627581449,0.04628823,64694.0,64693.0,0.077249]
[1724627581652,0.04628823,64694.0,64693.0,0.32307053]
[1724627582160,0.04628823,64695.0,64694.0,0.077248]
[1724627582359,0.04628823,64695.0,64694.0,0.628048]
[1724627583259,0.04628823,64696.0,64695.0,0.077247]
[1724627583559,0.04628823,64697.0,64696.0,0.077246]
[1724627583766,0.0001541,64701.0,64696.0,0.2]
[1724627583954,0.0001541,64701.0,64698.0,0.077243]
[1724627583955,0.04624227,64699.0,64698.0,0.077243]
[1724627584157,0.0001541,64701.0,64699.0,0.077242]